bitfinex-derivatives/quotes_BTCF0:USTF0_20250528
["timestamp","ask_amount","ask_price","bid_price","bid_amount"]
[1748399822708,0.6141175,108880.0,108870.0,0.34825925]
[1748399822902,0.6141175,108880.0,108870.0,0.34813925]
[1748399823092,0.6141175,108880.0,108870.0,0.34825925]
[1748399823600,0.6452175,108880.0,108870.0,0.48131953]
[1748399824098,0.6452175,108880.0,108870.0,0.47131953]
[1748399824287,0.6452175,108880.0,108870.0,0.95491953]
[1748399824591,0.64969959,108880.0,108870.0,0.45256852]
[1748399824792,0.64969959,108880.0,108870.0,0.21590824]
[1748399825882,0.64969959,108880.0,108870.0,0.04464485]
[1748399826084,1.12460787,108880.0,108870.0,0.04464485]
[1748399826296,1.56604787,108880.0,108870.0,0.04452485]
[1748399826589,1.57604787,108880.0,108870.0,0.03112]
[1748399827294,1.14460787,108880.0,108870.0,0.03112]
[1748399827605,0.1836144,108870.0,108860.0,0.01408584]
[1748399827808,0.74017468,108870.0,108860.0,0.02013817]
[1748399827988,1.09203069,108870.0,108860.0,0.02013817]
[1748399828194,1.09203069,108870.0,108860.0,0.02025817]
[1748399828786,1.09203069,108870.0,108860.0,0.02313817]
[1748399828984,0.95897041,108870.0,108860.0,0.02313817]
[1748399829201,1.09203069,108870.0,108860.0,0.02325817]
[1748399829591,1.44303069,108870.0,108860.0,0.02125817]
[1748399830099,1.44303069,108870.0,108840.0,0.2954954]
[1748399830100,0.1836481,108850.0,108840.0,0.02]
[1748399830423,1.13018038,108850.0,108840.0,0.1]
[1748399830593,1.45188038,108850.0,108840.0,0.10012]
[1748399830791,1.48438038,108850.0,108840.0,0.1]
[1748399831296,1.48438038,108850.0,108840.0,0.10012]
[1748399831484,1.48438038,108850.0,108840.0,0.10212]
[1748399832288,1.48438038,108850.0,108840.0,0.104]
[1748399832799,1.83438038,108850.0,108840.0,0.10412]
[1748399834395,1.83438038,108850.0,108840.0,0.004]
[1748399834600,1.7013201,108850.0,108840.0,0.00412]
[1748399834903,1.83438038,108850.0,108840.0,0.00412]
[1748399836996,1.58438038,108850.0,108840.0,0.00412]
[1748399837403,2.11950038,108850.0,108840.0,0.00412]
[1748399838702,2.11938038,108850.0,108840.0,0.004]
[1748399838895,2.11938038,108850.0,108840.0,0.00412]
[1748399839099,0.1836988,108820.0,108810.0,0.05164099]
[1748399839404,1.03835908,108820.0,108810.0,0.1412]
[1748399839609,1.14425908,108820.0,108810.0,0.11]
[1748399839988,1.0111988,108820.0,108810.0,0.11]
[1748399840194,1.14425908,108820.0,108810.0,0.11012]
[1748399840395,1.14425908,108820.0,108810.0,0.111]
[1748399840600,1.14425908,108820.0,108810.0,0.11112]
[1748399840795,1.15334689,108820.0,108810.0,0.111]
[1748399840991,1.15334689,108820.0,108810.0,0.11112]
[1748399841503,1.15434689,108820.0,108810.0,0.11112]
[1748399842007,1.15634689,108820.0,108810.0,0.11012]
[1748399843806,1.15634689,108820.0,108810.0,0.11]
[1748399844110,1.15634689,108820.0,108810.0,0.11048]
[1748399845029,1.45634689,108820.0,108810.0,0.11048]
[1748399845510,1.45634689,108820.0,108810.0,0.1106]
[1748399846201,1.45634689,108820.0,108810.0,0.0614904]
[1748399846202,1.5482469,108820.0,108810.0,0.0614904]
[1748399846436,0.1837157,108810.0,108800.0,7e-08]
[1748399846621,0.1837326,108800.0,108790.0,0.00183832]
[1748399846929,1.28675316,108800.0,108790.0,2e-08]
[1748399847110,1.37866916,108800.0,108790.0,2e-08]
[1748399847322,0.1837664,108780.0,108770.0,0.09621933]
[1748399847521,0.9053664,108780.0,108770.0,0.42621933]
[1748399847726,0.9698664,108780.0,108770.0,0.42621933]
[1748399847910,0.9698664,108780.0,108770.0,0.21621933]
[1748399848101,1.10292668,108780.0,108770.0,0.21621933]
[1748399848411,0.9698664,108780.0,108770.0,0.21621933]
[1748399848807,0.9698664,108780.0,108770.0,0.21633933]
[1748399849203,1.0698664,108780.0,108770.0,0.21633933]
[1748399849694,1.20392668,108780.0,108770.0,0.22133933]
[1748399850301,1.41392668,108780.0,108770.0,0.22421933]
[1748399850612,1.41392668,108780.0,108770.0,0.22433933]
[1748399850910,1.41792668,108780.0,108770.0,0.18573933]
[1748399851092,1.50985868,108780.0,108770.0,0.12103933]
[1748399851298,1.50985868,108780.0,108770.0,0.12091933]
[1748399851512,1.2848664,108780.0,108770.0,0.12091933]
[1748399851707,1.2203664,108780.0,108770.0,0.21361933]
[1748399852009,1.0403664,108780.0,108770.0,0.21361933]
[1748399852310,1.0403664,108780.0,108770.0,0.21373933]
[1748399852510,1.0705664,108780.0,108770.0,0.21373933]
[1748399852711,1.0725664,108780.0,108770.0,0.21373933]
[1748399853508,1.0725664,108780.0,108770.0,0.39752253]
[1748399854604,1.2925664,108780.0,108770.0,0.39752253]
[1748399855009,1.0113664,108780.0,108770.0,0.39752253]
[1748399857101,1.0113664,108780.0,108770.0,0.41796195]
[1748399857409,1.0113664,108780.0,108770.0,0.41888195]
[1748399857919,0.9113664,108780.0,108770.0,0.60999044]
[1748399858112,0.9113664,108780.0,108770.0,0.47693016]
[1748399859619,0.9103664,108780.0,108770.0,0.47693016]
[1748399859915,0.9063664,108780.0,108770.0,0.47693016]
[1748399860114,0.9093664,108780.0,108770.0,0.50421984]
[1748399860517,0.9093664,108780.0,108770.0,0.48378042]
[1748399860814,0.9093664,108780.0,108770.0,0.50424549]
[1748399864822,0.9093664,108780.0,108770.0,0.50426081]
[1748399865217,0.9093664,108780.0,108770.0,0.48378042]
[1748399865218,0.5485664,108780.0,108770.0,0.48378042]
[1748399866215,0.5485664,108780.0,108770.0,0.52471696]
[1748399867122,0.5485664,108780.0,108770.0,0.46666875]
[1748399867620,0.5485664,108780.0,108770.0,0.52498421]
[1748399868210,0.5485664,108780.0,108770.0,0.46666875]
[1748399869223,0.5485664,108780.0,108770.0,0.87089907]
[1748399869415,0.5795664,108780.0,108770.0,0.87089907]
[1748399869818,0.5795664,108780.0,108770.0,0.9402813]
[1748399870028,0.1877664,108780.0,108770.0,1.07334158]
[1748399870220,0.1877663,108780.0,108770.0,1.87694676]
[1748399870725,0.1877663,108780.0,108770.0,1.46155722]
[1748399871408,0.1867663,108780.0,108770.0,1.46255722]
[1748399871612,0.1867663,108780.0,108770.0,1.53120238]
[1748399871814,0.1867663,108780.0,108770.0,1.46255722]
[1748399872019,0.003,108780.0,108770.0,1.46255722]
[1748399872226,0.003,108780.0,108770.0,1.89200238]
[1748399872414,0.1867664,108780.0,108770.0,1.89200238]
[1748399872612,0.1847664,108780.0,108770.0,1.89200238]
[1748399873214,0.1847664,108780.0,108770.0,1.89202492]
[1748399873518,0.1847664,108780.0,108770.0,1.22400464]
[1748399873724,0.5763664,108780.0,108770.0,0.67277935]
[1748399873921,0.6091664,108780.0,108770.0,0.60277935]
[1748399874118,0.6091664,108780.0,108770.0,1.03425935]
[1748399874518,0.6091664,108780.0,108770.0,1.03413935]
[1748399874724,0.6091664,108780.0,108770.0,1.03425935]
[1748399877226,0.6091664,108780.0,108770.0,0.25435615]
[1748399877227,0.80222668,108780.0,108770.0,0.25435615]
[1748399877436,0.83232668,108780.0,108770.0,0.26538267]
[1748399877620,0.83232668,108780.0,108770.0,0.26550267]
[1748399877823,0.83232668,108780.0,108770.0,0.23400267]
[1748399878227,1.11232668,108780.0,108770.0,0.23400267]
[1748399878528,1.13364668,108780.0,108770.0,0.23400267]
[1748399878835,1.13364668,108780.0,108770.0,0.41778597]
[1748399879422,1.0005864,108780.0,108770.0,0.46323799]
[1748399879629,0.8105864,108780.0,108770.0,0.49593799]
[1748399879830,0.8105864,108780.0,108770.0,0.4257458]
[1748399880131,0.7942664,108780.0,108770.0,0.38461902]
[1748399880336,0.7942664,108780.0,108770.0,0.46989474]
[1748399880828,0.7942664,108780.0,108770.0,0.41511711]
[1748399881030,0.7942664,108780.0,108770.0,0.46989474]
[1748399881630,0.7942664,108780.0,108770.0,0.41512706]
[1748399882322,0.7942664,108780.0,108770.0,0.46990469]
[1748399882518,0.6442664,108780.0,108770.0,0.49990469]
[1748399882933,0.6442664,108780.0,108770.0,0.63296497]
[1748399883834,0.6442664,108780.0,108770.0,0.49990469]
[1748399884535,0.6114662,108780.0,108770.0,1.04701728]
[1748399884737,0.2506662,108780.0,108770.0,0.99223965]
[1748399884940,0.2506662,108780.0,108770.0,1.06088481]
[1748399885230,0.2806662,108780.0,108770.0,0.61782453]
[1748399885623,0.6414662,108780.0,108770.0,0.61782453]
[1748399885822,0.6414662,108780.0,108770.0,0.61782615]
[1748399886036,0.6726962,108780.0,108770.0,0.67268705]
[1748399886333,0.6726962,108780.0,108770.0,0.48878375]
[1748399886532,0.80575648,108780.0,108770.0,0.97232169]
[1748399886732,0.7033962,108780.0,108770.0,0.97232169]
[1748399886933,0.7033962,108780.0,108770.0,0.97220169]
[1748399887134,0.7033962,108780.0,108770.0,0.22300705]
[1748399887357,0.85645648,108780.0,108770.0,0.20929121]
[1748399887552,1.19645648,108780.0,108770.0,0.20929121]
[1748399887931,1.19645648,108780.0,108770.0,0.20917121]
[1748399888842,1.19645648,108780.0,108770.0,0.20929121]
[1748399889928,1.19645648,108780.0,108770.0,0.20953701]
[1748399892932,1.19645648,108780.0,108770.0,0.20941701]
[1748399893134,1.19645648,108780.0,108770.0,0.20953701]
[1748399894241,1.19645648,108780.0,108770.0,0.20952906]
[1748399895146,1.19645648,108780.0,108770.0,0.23694896]
[1748399895631,1.19645648,108780.0,108770.0,0.26144854]
[1748399896161,1.19645648,108780.0,108770.0,0.21344808]
[1748399896345,1.23936572,108780.0,108770.0,0.14324708]
[1748399896537,1.23936572,108780.0,108770.0,0.21344808]
[1748399896841,1.23936572,108780.0,108770.0,0.14324708]
[1748399897045,1.23936572,108780.0,108770.0,0.14312708]
[1748399897241,1.23936572,108780.0,108770.0,0.14324708]
[1748399898845,1.67080572,108780.0,108770.0,0.14324708]
[1748399899152,1.67080572,108780.0,108770.0,0.1226837]
[1748399899549,1.67080572,108780.0,108770.0,0.18114089]
[1748399899748,1.67080572,108780.0,108770.0,0.1226837]
[1748399900940,1.67080572,108780.0,108770.0,0.14324708]
[1748399901655,1.67080572,108780.0,108770.0,0.18113622]
[1748399901856,1.67080572,108780.0,108770.0,0.2016996]
[1748399902049,1.78121264,108780.0,108770.0,0.2016996]
[1748399902459,1.87310208,108780.0,108770.0,0.11169152]
[1748399902655,1.93002397,108780.0,108770.0,0.06049252]
[1748399902852,0.1837843,108770.0,108760.0,0.0225275]
[1748399903054,1.0917179,108770.0,108760.0,0.0725275]
[1748399903255,1.1951179,108770.0,108760.0,0.0725275]
[1748399903558,1.2164079,108770.0,108760.0,0.0725275]
[1748399905369,1.2164079,108770.0,108760.0,0.0726475]
[1748399905570,1.2164079,108770.0,108760.0,0.0746475]
[1748399905780,1.25927458,108770.0,108760.0,0.0746475]
[1748399906189,1.69075458,108770.0,108760.0,0.0746475]
[1748399906385,1.6518879,108770.0,108760.0,0.0726475]
[1748399906571,1.6518879,108770.0,108760.0,0.07264244]
[1748399907182,1.6518879,108770.0,108760.0,0.14284344]
[1748399907371,1.5301543,108770.0,108760.0,0.23684344]
[1748399907675,1.6518879,108770.0,108760.0,0.23684344]
[1748399907981,1.1170079,108770.0,108760.0,0.23684344]
[1748399908171,0.9952743,108770.0,108760.0,0.23684344]
[1748399908492,0.7926743,108770.0,108760.0,1.35127814]
[1748399908777,0.5836643,108770.0,108760.0,1.41675708]
[1748399908972,0.5836643,108770.0,108760.0,1.31913618]
[1748399909394,0.39988,108770.0,108760.0,1.33285202]
[1748399909587,0.5836643,108770.0,108760.0,1.80815966]
[1748399909900,0.03123,108780.0,108770.0,0.1837843]
[1748399910098,0.54469087,108790.0,108780.0,0.1837674]
[1748399910303,0.54469087,108790.0,108780.0,1.48860913]
[1748399910493,0.18389087,108790.0,108780.0,1.07794999]
[1748399910702,0.18389087,108790.0,108780.0,1.37687553]
[1748399911182,0.18389087,108790.0,108780.0,1.45814303]
[1748399911375,0.54469087,108790.0,108780.0,1.03687553]
[1748399911584,0.57579087,108790.0,108780.0,1.02315521]
[1748399911787,0.57879087,108790.0,108780.0,1.12647521]
[1748399912090,0.57879087,108790.0,108780.0,1.01486161]
[1748399912382,0.57979087,108790.0,108780.0,1.14791595]
[1748399912767,0.57979087,108790.0,108780.0,1.14819595]
[1748399912967,0.18789087,108790.0,108780.0,1.47819595]
[1748399913279,0.18789087,108790.0,108780.0,1.47034384]
[1748399913473,0.18789087,108790.0,108780.0,1.51138656]
[1748399913671,0.18789087,108790.0,108780.0,1.88591627]
[1748399914194,0.1870036,108800.0,108790.0,0.1837505]
[1748399914370,0.1870036,108800.0,108790.0,0.9499888]
[1748399914697,0.5478036,108800.0,108790.0,0.60622591]
[1748399914882,0.5478036,108800.0,108790.0,0.48699768]
[1748399915078,0.5805036,108800.0,108790.0,0.48699768]
[1748399915481,0.5805036,108800.0,108790.0,1.02795768]
[1748399916166,0.5478036,108800.0,108790.0,1.02795768]
[1748399916372,0.5478036,108800.0,108790.0,1.47101202]
[1748399916679,0.5478036,108800.0,108790.0,0.31875346]
[1748399916882,0.5805036,108800.0,108790.0,1.1131594]
[1748399917091,0.5805036,108800.0,108790.0,1.1133194]
[1748399917381,0.5805036,108800.0,108790.0,1.04801856]
[1748399917683,0.5805036,108800.0,108790.0,0.50729856]
[1748399917884,0.5805036,108800.0,108790.0,1.04785856]
[1748399918181,0.5805036,108800.0,108790.0,1.04781856]
[1748399918377,0.5805036,108800.0,108790.0,1.02262062]
[1748399918780,0.5805036,108800.0,108790.0,1.00209421]
[1748399918974,0.5805036,108800.0,108790.0,1.02260756]
[1748399919670,0.5805036,108800.0,108790.0,0.48208756]
[1748399919874,0.5805036,108800.0,108790.0,1.02220756]
[1748399920080,0.5805036,108800.0,108790.0,1.02232756]
[1748399921274,0.6111036,108800.0,108790.0,1.02232756]
[1748399921772,0.6111036,108800.0,108790.0,1.09226027]
[1748399921978,0.74415794,108800.0,108790.0,0.36826977]
[1748399922173,0.74415794,108800.0,108790.0,0.80466977]
[1748399922174,0.77415794,108800.0,108790.0,0.80466977]
[1748399922374,0.77415794,108800.0,108790.0,0.77720491]
[1748399922577,0.77415794,108800.0,108790.0,0.73248606]
[1748399922974,0.77415794,108800.0,108790.0,0.66255335]
[1748399923178,0.6411036,108800.0,108790.0,0.66254446]
[1748399923380,0.6411036,108800.0,108790.0,0.22622446]
[1748399924079,0.8911036,108800.0,108790.0,0.22622446]
[1748399925080,0.7311036,108800.0,108790.0,0.22622446]
[1748399925774,0.7311036,108800.0,108790.0,0.07690039]
[1748399926584,0.7311036,108800.0,108790.0,0.26065089]
[1748399926783,0.7311036,108800.0,108790.0,0.07690039]
[1748399927385,0.7311036,108800.0,108790.0,0.26064803]
[1748399927789,0.7311036,108800.0,108790.0,0.28798042]
[1748399928286,0.7311036,108800.0,108790.0,0.26064803]
[1748399928481,0.7311036,108800.0,108790.0,0.28798042]
[1748399928682,0.7311036,108800.0,108790.0,0.26064803]
[1748399928890,0.7311036,108800.0,108790.0,0.32574803]
[1748399929280,0.7311036,108800.0,108790.0,0.14099753]
[1748399929594,0.7311036,108800.0,108790.0,0.32474803]
[1748399930689,0.7311036,108800.0,108790.0,0.32374803]
[1748399931393,0.7311036,108800.0,108790.0,0.35108042]
[1748399931604,0.7311036,108800.0,108790.0,0.35109165]
[1748399932897,0.7311036,108800.0,108790.0,0.42102436]
[1748399932898,0.3703036,108800.0,108790.0,0.42102436]
[1748399933094,0.7311036,108800.0,108790.0,0.42102436]
[1748399934394,0.7311036,108800.0,108790.0,0.40051153]
[1748399935503,0.85275672,108800.0,108790.0,0.41642562]
[1748399935899,0.85275672,108800.0,108790.0,0.41642824]
[1748399936600,0.85275672,108800.0,108790.0,0.35132824]
[1748399937390,0.85275672,108800.0,108790.0,0.32399585]
[1748399938092,0.85275672,108800.0,108790.0,0.34930998]
[1748399938599,0.73275672,108800.0,108790.0,0.38190998]
[1748399938801,0.73275672,108800.0,108790.0,0.41400998]
[1748399938995,0.73275672,108800.0,108790.0,0.34386752]
[1748399939195,0.6111036,108800.0,108790.0,0.34386752]
[1748399939700,0.6111036,108800.0,108790.0,0.73449955]
[1748399939701,0.5805036,108800.0,108790.0,0.73449955]
[1748399940195,0.5805036,108800.0,108790.0,0.42449955]
[1748399940587,0.5805036,108800.0,108790.0,0.42541955]
[1748399940792,0.6126036,108800.0,108790.0,0.12101593]
[1748399940991,0.73425672,108800.0,108790.0,0.0975175]
[1748399941203,0.77585672,108800.0,108790.0,0.0975175]
[1748399941403,0.77585672,108800.0,108790.0,0.0973975]
[1748399941595,0.77585672,108800.0,108790.0,0.0975175]
[1748399942088,0.77585672,108800.0,108790.0,0.0985175]
[1748399944505,0.77585672,108800.0,108790.0,0.282268]
[1748399944803,0.6226036,108800.0,108790.0,0.282268]
[1748399944991,0.6226036,108800.0,108790.0,0.346868]
[1748399945195,0.6226036,108800.0,108790.0,0.41701046]
[1748399946292,0.6226036,108800.0,108790.0,0.53866358]
[1748399946498,0.6226036,108800.0,108790.0,0.87746201]
[1748399946499,0.5805036,108800.0,108790.0,0.87746201]
[1748399947899,0.5805036,108800.0,108790.0,0.80731955]
[1748399948103,0.5805036,108800.0,108790.0,0.30566643]
[1748399948300,0.6131036,108800.0,108790.0,0.84718643]
[1748399948703,0.6131036,108800.0,108790.0,0.84730643]
[1748399950606,0.6131036,108800.0,108790.0,1.16730643]
[1748399950793,0.6131036,108800.0,108790.0,1.13273658]
[1748399951199,0.5805036,108800.0,108790.0,1.13273658]
[1748399951400,0.2197036,108800.0,108790.0,1.13273658]
[1748399951998,0.5805036,108800.0,108790.0,1.2324343]
[1748399952399,0.5805036,108800.0,108790.0,1.3659136]
[1748399952811,0.5805036,108800.0,108790.0,1.26872594]
[1748399953003,0.5805036,108800.0,108790.0,1.36590733]
[1748399953505,0.5805036,108800.0,108790.0,1.48756045]
[1748399953699,0.5805036,108800.0,108790.0,1.35408115]
[1748399953897,0.5805036,108800.0,108790.0,1.35936065]
[1748399954276,0.70215672,108800.0,108790.0,1.11053793]
[1748399954425,0.73245672,108800.0,108790.0,0.97706156]
[1748399954617,0.73693881,108800.0,108790.0,0.20981145]
[1748399954830,0.76913881,108800.0,108790.0,0.20969145]
[1748399955022,1.08913881,108800.0,108790.0,0.22147222]
[1748399955331,1.13209119,108800.0,108790.0,0.22147222]
[1748399955507,1.1276091,108800.0,108790.0,0.22147222]
[1748399955699,1.1276091,108800.0,108790.0,0.22159222]
[1748399956042,1.1286091,108800.0,108790.0,0.15120878]
[1748399956329,1.1286091,108800.0,108790.0,0.29403298]
[1748399956532,0.8096091,108800.0,108790.0,0.29391298]
[1748399956719,0.8396091,108800.0,108790.0,0.29403298]
[1748399957010,0.79665672,108800.0,108790.0,0.25416831]
[1748399957308,0.71795598,108800.0,108790.0,0.25416831]
[1748399957617,0.79665672,108800.0,108790.0,0.25416831]
[1748399958115,0.8396091,108800.0,108790.0,0.43791881]
[1748399958412,0.8396091,108800.0,108790.0,0.25416831]
[1748399958413,0.76665672,108800.0,108790.0,0.25416831]
[1748399958915,0.8096091,108800.0,108790.0,0.29400734]
[1748399959319,0.8096091,108800.0,108790.0,0.29400909]
[1748399959804,0.8096091,108800.0,108790.0,0.29399144]
[1748399960005,0.8096091,108800.0,108790.0,0.2490397]
[1748399960207,0.68795598,108800.0,108790.0,0.2490397]
[1748399960408,0.8096091,108800.0,108790.0,0.20771092]
[1748399960716,0.8096091,108800.0,108790.0,0.20783092]
[1748399960916,0.80959075,108800.0,108790.0,0.20783092]
[1748399964140,0.6450036,108800.0,108790.0,0.20783092]
[1748399964316,0.6450036,108800.0,108790.0,0.2490397]
[1748399964817,0.76665672,108800.0,108790.0,0.2490397]
[1748399966312,0.76665672,108800.0,108790.0,0.17879892]
[1748399966519,0.76665672,108800.0,108790.0,0.13759014]
[1748399967317,1.14958083,108800.0,108790.0,0.13759014]
[1748399967715,0.80958083,108800.0,108790.0,0.13759014]
[1748399969225,0.68792771,108800.0,108790.0,0.13759014]
[1748399969520,0.76665672,108800.0,108790.0,0.13759014]
[1748399969912,0.76665672,108800.0,108790.0,0.2490397]
[1748399970810,0.76665672,108800.0,108790.0,0.17879892]
[1748399971011,0.80957117,108800.0,108790.0,0.13759014]
[1748399971210,0.80957117,108800.0,108790.0,0.19610161]
[1748399971415,1.17037117,108800.0,108790.0,0.19610161]
[1748399972224,1.17037117,108800.0,108790.0,0.13759014]
[1748399972606,1.17037117,108800.0,108790.0,0.19609971]
[1748399972916,1.17037117,108800.0,108790.0,0.13759014]
[1748399973127,1.17037117,108800.0,108790.0,0.19609973]
[1748399973520,1.16710117,108800.0,108790.0,0.19609973]
[1748399973719,1.06544805,108800.0,108790.0,0.37985033]
[1748399973914,1.14418672,108800.0,108790.0,0.17879892]
[1748399974148,1.0225336,108800.0,108790.0,0.17879892]
[1748399974328,1.14418672,108800.0,108790.0,0.13759014]
[1748399974514,1.14418672,108800.0,108790.0,0.19609675]
[1748399974713,1.18710468,108800.0,108790.0,0.19609675]
[1748399974920,1.14418672,108800.0,108790.0,0.19609675]
[1748399975717,1.18710468,108800.0,108790.0,0.19609675]
[1748399976009,1.18710468,108800.0,108790.0,0.13759014]
[1748399976212,1.14418672,108800.0,108790.0,0.13759014]
[1748399977425,1.36823672,108800.0,108790.0,0.13759014]
[1748399977723,1.36823672,108800.0,108790.0,0.17879892]
[1748399977920,1.36823672,108800.0,108790.0,0.2490397]
[1748399978115,1.41115629,108800.0,108790.0,0.13759014]
[1748399979323,1.19115629,108800.0,108790.0,0.13759014]
[1748399980713,1.19115629,108800.0,108790.0,0.20783092]
[1748399980914,1.19115629,108800.0,108790.0,0.20771092]
[1748399981126,1.19115629,108800.0,108790.0,0.20783092]
[1748399982219,1.19116583,108800.0,108790.0,0.20783092]
[1748399983530,1.19116583,108800.0,108790.0,0.2490397]
[1748399984818,1.19116583,108800.0,108790.0,0.2489197]
[1748399985217,1.19116583,108800.0,108790.0,0.2490397]
[1748399986128,1.25808772,108800.0,108790.0,0.2490397]
[1748399986313,1.22808772,108800.0,108790.0,0.2489197]
[1748399986519,1.57812771,108800.0,108790.0,0.1829919]
[1748399986928,1.30812771,108800.0,108790.0,0.1829919]
[1748399987524,1.30812771,108800.0,108790.0,0.27389854]
[1748399987920,1.30812771,108800.0,108790.0,0.20360428]
[1748399988127,1.30812771,108800.0,108790.0,0.1829919]
[1748399988334,1.30812771,108800.0,108790.0,0.22420068]
[1748399989129,1.30812771,108800.0,108790.0,0.1829919]
[1748399990523,1.30812771,108800.0,108790.0,0.20360252]
[1748399990724,1.30811815,108800.0,108790.0,0.20359481]
[1748399991526,1.30811815,108800.0,108790.0,0.27387956]
[1748399992434,1.30811815,108800.0,108790.0,0.20359481]
[1748399992634,1.30811815,108800.0,108790.0,0.22848154]
[1748399995146,1.30810953,108800.0,108790.0,0.2284771]
[1748399996844,1.30810953,108800.0,108790.0,0.20787039]
[1748399997741,1.26515861,108800.0,108790.0,0.1961496]
[1748399999939,1.50515861,108800.0,108790.0,0.1961496]
[1748400003844,1.50515861,108800.0,108790.0,0.21675561]
[1748400004047,1.50515861,108800.0,108790.0,0.1961496]
[1748400004236,1.50515861,108800.0,108790.0,0.21675558]
[1748400004544,1.50515861,108800.0,108790.0,0.1961496]
[1748400005147,1.50515861,108800.0,108790.0,0.21675665]
[1748400005648,1.50515861,108800.0,108790.0,0.1961496]
[1748400005847,1.50515861,108800.0,108790.0,0.21675628]
[1748400006043,1.60875861,108800.0,108790.0,0.15819682]
[1748400006247,1.63721956,108800.0,108790.0,0.14506891]
[1748400006542,1.63721956,108800.0,108790.0,0.05868431]
[1748400007042,1.63721956,108800.0,108790.0,0.05856431]
[1748400007233,1.63721956,108800.0,108790.0,0.05868431]
[1748400008141,2.06897956,108800.0,108790.0,0.05868431]
[1748400008339,2.06897956,108800.0,108790.0,0.00012]
[1748400008743,1.41196644,108800.0,108790.0,0.00012]
[1748400009053,2.12625236,108800.0,108790.0,0.00012]
[1748400009237,2.12625236,108800.0,108790.0,0.10982668]
[1748400010544,2.12625236,108800.0,108790.0,0.08472668]
[1748400011937,2.12625236,108800.0,108790.0,0.05172668]
[1748400012334,2.12625236,108800.0,108790.0,0.05171739]
[1748400012935,2.12625236,108800.0,108790.0,0.03112]
[1748400013441,2.12625236,108800.0,108790.0,0.11025015]
[1748400014562,2.12625236,108800.0,108790.0,0.00884795]
[1748400014563,2.06897956,108800.0,108790.0,0.00884795]
[1748400014957,2.06897956,108800.0,108790.0,0.00896795]
[1748400015245,1.59088495,108800.0,108790.0,0.00012]
[1748400015437,2.06893956,108800.0,108790.0,0.00012]
[1748400015637,2.12620487,108800.0,108790.0,0.00012]
[1748400015950,1.45898997,108800.0,108790.0,0.02759014]
[1748400016135,1.45898997,108800.0,108790.0,0.09329014]
[1748400016336,1.41703672,108800.0,108790.0,0.27704074]
[1748400016535,1.46099033,108800.0,108790.0,0.09329014]
[1748400016747,1.33933721,108800.0,108790.0,0.27704074]
[1748400016972,1.11903721,108800.0,108790.0,0.77990264]
[1748400017360,1.0760836,108800.0,108790.0,0.77990264]
[1748400017858,1.0760836,108800.0,108790.0,0.7524325]
[1748400018754,1.0740836,108800.0,108790.0,0.77988437]
[1748400018951,1.0720836,108800.0,108790.0,0.77988437]
[1748400019450,1.0720836,108800.0,108790.0,0.79722367]
[1748400019451,0.9420836,108800.0,108790.0,0.79722367]
[1748400020645,0.9420836,108800.0,108790.0,0.79721332]
[1748400022757,0.9420836,108800.0,108790.0,0.8225896]
[1748400022758,0.9093836,108800.0,108790.0,0.8225896]
[1748400023554,0.9397836,108800.0,108790.0,0.8225896]
[1748400024251,0.9397836,108800.0,108790.0,0.37093648]
[1748400024445,0.9397836,108800.0,108790.0,0.8225896]
[1748400024848,0.9407836,108800.0,108790.0,0.8225896]
[1748400025151,0.9407836,108800.0,108790.0,0.8235896]
[1748400025953,0.9397836,108800.0,108790.0,0.83848881]
[1748400027447,0.5789836,108800.0,108790.0,0.83848881]
[1748400030460,0.2181836,108800.0,108790.0,0.83848881]
[1748400030661,0.2181836,108800.0,108790.0,0.81305676]
[1748400030957,0.2181836,108800.0,108790.0,0.88315011]
[1748400031649,0.2181836,108800.0,108790.0,0.81305676]
[1748400033462,0.2181836,108800.0,108790.0,0.81304478]
[1748400033650,0.5789836,108800.0,108790.0,0.83841403]
[1748400036856,0.2181836,108800.0,108790.0,0.83841403]
[1748400037255,0.2490836,108800.0,108790.0,0.83841403]
[1748400037851,0.6098836,108800.0,108790.0,0.83841403]
[1748400041567,0.03445,108800.0,108790.0,1.17387266]
[1748400041879,0.03445,108800.0,108790.0,1.14264479]
[1748400042164,0.03445,108800.0,108790.0,1.18737939]
[1748400042955,0.03445,108800.0,108790.0,1.2127765]
[1748400043160,0.00405,108800.0,108790.0,1.32059985]
[1748400043366,0.00405,108800.0,108790.0,1.26587799]
[1748400043661,0.00405,108800.0,108790.0,1.46772962]
[1748400044263,0.03635,108800.0,108790.0,1.46772962]
[1748400044652,0.03635,108800.0,108790.0,1.46760962]
[1748400045257,0.03635,108800.0,108790.0,1.71760962]
[1748400045568,1e-08,108800.0,108790.0,1.71760962]
[1748400045867,0.03181743,108810.0,108800.0,0.1837338]
[1748400046163,0.03181743,108810.0,108800.0,1.80284598]
[1748400046486,0.72528638,108840.0,108810.0,0.0459256]
[1748400046660,0.8445985,108840.0,108830.0,0.37390051]
[1748400046972,0.5745985,108840.0,108830.0,0.88657775]
[1748400047277,0.5745985,108840.0,108830.0,0.87535005]
[1748400047761,0.5745985,108840.0,108830.0,0.94177399]
[1748400048160,0.5755985,108840.0,108830.0,0.94177399]
[1748400048560,0.5765985,108840.0,108830.0,0.94177399]
[1748400049758,0.6083985,108840.0,108830.0,0.94177399]
[1748400049960,0.61288059,108840.0,108830.0,0.94177399]
[1748400050160,0.25208059,108840.0,108830.0,0.94177399]
[1748400050373,0.06840209,108840.0,108830.0,0.94177399]
[1748400050574,0.25206839,108840.0,108830.0,0.94177399]
[1748400051775,0.25206839,108840.0,108830.0,0.96912144]
[1748400053572,0.25206839,108840.0,108830.0,0.89907151]
[1748400053770,0.25206839,108840.0,108830.0,0.94177399]
[1748400054582,0.00560209,108840.0,108830.0,1.30257399]
[1748400054871,0.25346839,108840.0,108830.0,1.44713711]
[1748400055079,0.06980209,108840.0,108830.0,1.44713711]
[1748400055264,0.06980209,108840.0,108830.0,1.47933711]
[1748400055665,0.06980209,108840.0,108830.0,1.40928718]
[1748400055866,0.06980209,108840.0,108830.0,1.47933711]
[1748400056569,0.06980209,108840.0,108830.0,1.40928718]
[1748400056776,0.01752303,108850.0,108840.0,0.1836663]
[1748400056995,0.05012303,108850.0,108840.0,1.47061115]
[1748400057179,0.05012303,108850.0,108840.0,1.44329648]
[1748400057573,0.05024303,108850.0,108840.0,1.44329648]
[1748400058079,0.05024303,108850.0,108840.0,1.37324655]
[1748400058475,0.08244303,108850.0,108840.0,1.37524655]
[1748400059279,0.08244303,108850.0,108840.0,1.37724655]
[1748400059475,0.08244303,108850.0,108840.0,1.25559343]
[1748400059684,0.08244303,108850.0,108840.0,1.28288958]
[1748400059987,0.62689243,108850.0,108840.0,0.48129615]
[1748400060215,0.78164555,108850.0,108840.0,0.44828245]
[1748400060491,0.78164555,108850.0,108840.0,0.7487463]
[1748400061983,0.78164555,108850.0,108840.0,0.7467463]
[1748400062171,0.65999243,108850.0,108840.0,0.7467463]
[1748400062371,0.78164555,108850.0,108840.0,0.7467463]
[1748400062778,0.78164555,108850.0,108840.0,0.7457463]
[1748400062975,0.78164555,108850.0,108840.0,0.3146663]
[1748400065186,0.78612764,108850.0,108840.0,0.3146663]